bitfinex/quotes_ETHUSD_20260131
["timestamp","ask_amount","ask_price","bid_price","bid_amount"]
[1769889814861,13.1081856,2376.5,2375.2,1.05254294]
[1769889815061,1.93288494,2376.7,2375.3,0.52638794]
[1769889815569,1.93288682,2376.7,2375.3,0.52638794]
[1769889815888,0.01672695,2377.1,2375.4,12.85114659]
[1769889816090,0.01672695,2377.3,2375.6,0.2335703]
[1769889816259,1.06834185,2377.3,2375.6,12.61757629]
[1769889816595,0.01672695,2377.0,2375.7,1.36699863]
[1769889816891,0.01672695,2377.0,2375.5,1.05241001]
[1769889817070,0.01672695,2377.1,2375.6,0.2335703]
[1769889817272,0.01672695,2376.9,2375.5,1.05241001]
[1769889817466,0.01672695,2376.8,2375.5,1.05241001]
[1769889817991,0.01672695,2376.9,2375.5,1.05241001]
[1769889818176,0.01672695,2376.7,2375.6,0.52620501]
[1769889818377,0.01672695,2376.7,2375.7,1.05232142]
[1769889818566,0.01672695,2376.6,2375.7,1.05232142]
[1769889818961,0.01672695,2376.4,2375.7,1.05232142]
[1769889819166,0.01672695,2376.3,2375.7,1.05232142]
[1769889819464,0.01672695,2376.4,2375.7,1.05232142]
[1769889819659,0.6340791,2377.2,2375.7,15.16710044]
[1769889819865,0.01672695,2377.1,2375.8,0.2335703]
[1769889820061,0.01672695,2377.0,2375.7,15.16710044]
[1769889820257,0.01672695,2377.1,2375.8,0.2335703]
[1769889820491,1.06846718,2377.1,2375.9,1.05223283]
[1769889820789,0.01672695,2377.2,2375.9,1.05223283]
[1769889820992,0.01672695,2377.6,2375.9,1.05223283]
[1769889820993,0.01672695,2377.7,2376.1,13.9089435]
[1769889821198,1.26996045,2378.3,2376.8,13.6753732]
[1769889821371,1.59861066,2378.3,2376.9,1.36921002]
[1769889821564,1.61533761,2378.3,2376.9,1.36921002]
[1769889821896,1.59861066,2378.3,2376.9,1.36921002]
[1769889822270,1.05090588,2378.9,2377.0,13.9089435]
[1769889822586,1.05090588,2378.9,2377.2,13.9089435]
[1769889822788,0.01672695,2378.8,2377.2,13.6753732]
[1769889822990,0.01672695,2378.4,2377.1,1.05170165]
[1769889823292,0.01672695,2378.4,2376.2,4.20823829]
[1769889823293,0.01672695,2378.3,2376.2,4.20823829]
[1769889823464,0.01672695,2377.9,2376.7,1.05185812]
[1769889823797,0.01672695,2378.3,2377.0,1.05174191]
[1769889824005,1.49909612,2378.8,2377.2,13.92567045]
[1769889824164,1.49909612,2378.8,2377.5,0.01672695]
[1769889824493,1.49909612,2378.8,2377.3,0.01672695]
[1769889824494,1.93299009,2378.8,2377.6,1.05148048]
[1769889824691,15.5782788,2378.8,2377.4,1.05153613]
[1769889824987,0.01672695,2378.6,2377.2,1.05165598]
[1769889825369,0.01672695,2378.1,2376.3,4.20807155]
[1769889825688,13.66201566,2377.9,2376.0,0.52611642]
[1769889825878,0.01672695,2377.5,2376.1,1.05213642]
[1769889826094,0.001,2377.7,2376.3,0.01672695]
[1769889826290,0.001,2377.7,2376.8,1.05180378]
[1769889826494,0.001,2377.7,2376.8,0.52592656]
[1769889826782,0.001,2377.7,2377.0,0.01672695]
[1769889826966,0.001,2377.7,2377.1,0.01672695]
[1769889827170,0.001,2377.7,2376.9,0.882]
[1769889827392,0.001,2377.7,2376.7,13.6753732]
[1769889827575,0.001,2377.7,2376.6,1.93392291]
[1769889827759,0.001,2377.7,2376.7,0.6325611]
[1769889827961,0.001,2377.7,2376.8,0.01672695]
[1769889828201,0.001,2377.7,2376.7,0.6325611]
[1769889828372,0.001,2377.7,2376.7,0.61583415]
[1769889828571,0.001,2377.7,2376.8,1.05183439]
[1769889828800,0.001,2377.7,2376.8,4.39782318]
[1769889828982,0.001,2377.7,2376.8,1.93383439]
[1769889829166,0.001,2377.7,2376.8,1.05183439]
[1769889830494,0.001,2377.7,2376.6,4.20762484]
[1769889830893,0.001,2377.7,2376.7,0.01672695]
[1769889831073,0.001,2377.7,2376.6,4.20762484]
[1769889831275,0.001,2377.7,2376.7,0.61582747]
[1769889832592,0.001,2377.7,2376.8,1.05183439]
[1769889832799,13.64628871,2377.7,2375.7,0.0011]
[1769889833011,13.64528871,2377.5,2375.7,0.0011]
[1769889833293,0.01672695,2376.6,2375.7,0.0011]
[1769889833467,13.66201566,2376.4,2375.1,0.0011]
[1769889833673,0.01672695,2376.2,2375.1,0.0011]
[1769889834071,0.01672695,2376.5,2375.1,0.0011]
[1769889834072,0.882,2376.6,2375.7,1.05229267]
[1769889834271,0.882,2376.6,2375.3,4.20994083]
[1769889834490,0.882,2376.6,2375.3,0.50930408]
[1769889834700,1.93396112,2376.6,2375.4,1.05245432]
[1769889837070,17.85163527,2377.4,2375.4,0.01672695]
[1769889837399,1.93361317,2377.3,2375.6,0.01672695]
[1769889838099,0.01672695,2376.8,2375.6,0.0011]
[1769889838271,0.01672695,2376.7,2375.6,0.0011]
[1769889838469,13.66201566,2376.4,2375.6,0.0011]
[1769889838670,13.66201566,2376.4,2375.4,0.0011]
[1769889838671,14.54401566,2376.3,2375.4,0.0011]
[1769889839077,1.05209999,2376.2,2375.4,0.0011]
[1769889839308,14.71411565,2376.2,2375.1,0.0011]
[1769889839520,13.64528871,2376.1,2375.1,0.0011]
[1769889840013,13.66201566,2376.1,2375.1,0.0011]
[1769889840213,1.05209999,2376.2,2374.5,1.05393815]
[1769889840511,0.01672695,2376.1,2374.5,1.05393815]
[1769889841007,1.06882694,2376.2,2374.5,1.05393815]
[1769889841215,0.61759539,2376.1,2374.6,15.56957289]
[1769889841718,0.63432234,2376.1,2374.6,15.56957289]
[1769889842005,0.63432234,2376.1,2374.6,1.89419969]
[1769889842006,0.01672695,2376.0,2374.6,1.89419969]
[1769889842211,13.64528871,2375.5,2374.5,0.0011]
[1769889842413,0.01672695,2375.3,2374.5,0.0011]
[1769889842592,13.64528871,2375.5,2374.5,0.0011]
[1769889842779,0.01672695,2375.3,2374.5,0.0011]
[1769889843107,0.01672695,2375.3,2373.2,14.72880316]
[1769889843108,0.01672695,2374.8,2373.2,14.72880316]
[1769889843277,1.66977003,2376.1,2373.9,13.69210015]
[1769889843489,4.20728145,2376.9,2374.8,13.6753732]
[1769889843693,0.01672695,2376.7,2374.9,14.5573732]
[1769889844014,0.01672695,2376.7,2374.3,0.01672695]
[1769889844015,0.01672695,2376.4,2375.0,15.13111052]
[1769889844325,0.01672695,2376.6,2374.8,0.2335703]
[1769889844530,4.20728145,2376.9,2375.0,13.69210015]
[1769889844730,0.52925255,2376.8,2375.4,0.01672695]
[1769889844931,0.01772695,2377.5,2375.6,13.69210015]
[1769889845130,0.001,2377.5,2376.0,14.72756175]
[1769889846441,0.001,2377.5,2376.0,1.05218855]
[1769889846731,0.01772695,2377.5,2376.0,1.05218855]
[1769889846901,0.01772695,2377.5,2376.0,1.57828282]
[1769889847101,1.05156894,2377.4,2376.0,1.57828282]
[1769889847623,0.001,2377.7,2376.6,13.46740437]
[1769889847831,0.001,2377.7,2376.2,13.45067742]
[1769889847832,1.05244949,2377.7,2376.2,13.45067742]
[1769889848124,1.05243774,2377.7,2376.3,1.34506774]
[1769889848299,0.001,2377.7,2376.3,1.36179469]
[1769889848507,17.0865286,2378.3,2376.3,1.36179469]
[1769889848508,1.05090588,2378.9,2377.3,13.46740437]
[1769889848854,1.05189208,2379.0,2377.5,0.01672695]
[1769889849150,1.05189208,2379.0,2377.4,14.79909055]
[1769889849314,0.54740671,2378.9,2376.9,13.46740437]
[1769889849510,0.54740671,2378.9,2377.5,1.05151802]
[1769889849710,0.54740671,2378.9,2377.4,1.05152616]
[1769889850015,0.54740671,2378.9,2377.5,1.05152071]
[1769889850209,0.54740671,2378.9,2377.6,13.68424772]
[1769889850405,0.001,2379.0,2377.8,0.01672695]
[1769889850836,0.001,2379.0,2377.8,14.34940437]
[1769889851519,0.001,2379.0,2377.9,1.05134782]
[1769889852235,0.001,2379.0,2377.9,1.06807477]
[1769889852543,0.001,2379.0,2377.9,1.05134782]
[1769889852840,1.05061385,2379.6,2378.1,0.01672695]
[1769889853037,0.1024,2380.0,2378.1,13.46740437]
[1769889853221,4.21794611,2380.3,2378.6,13.45067742]
[1769889853418,4.21794611,2380.3,2378.3,0.2335703]
[1769889853618,4.21794611,2380.3,2378.4,1.06785375]
[1769889853917,4.20098376,2380.4,2378.6,0.01672695]
[1769889854120,1.05024365,2380.4,2378.7,14.34940437]
[1769889854928,1.05024365,2380.4,2378.7,14.33267742]
[1769889855320,1.05024365,2380.4,2378.8,0.2335703]
[1769889855518,1.05024365,2380.4,2378.8,13.68424772]
[1769889855855,1.05021167,2380.5,2379.0,13.46740437]
[1769889856153,0.4217592,2380.4,2379.0,13.45067742]
[1769889856843,0.4217592,2380.4,2378.9,2.50920335]
[1769889857237,0.001,2380.9,2379.2,0.01672695]
[1769889857439,1.0500672,2380.8,2379.0,13.70097467]
[1769889857617,1.06679415,2380.8,2379.0,13.45067742]
[1769889857818,1.06679415,2380.8,2379.1,1.05081753]
[1769889858034,1.0500672,2380.8,2379.1,15.4002219]
[1769889858222,0.5251336,2380.7,2379.2,1.97874885]
[1769889858425,0.5251336,2380.7,2379.2,13.45067742]
[1769889858626,0.5251336,2380.7,2379.6,0.01672695]
[1769889858817,1.05105399,2380.9,2379.5,13.45067742]
[1769889859017,1.05105399,2380.9,2379.1,1.05081753]
[1769889859018,12.8817156,2380.8,2379.1,1.05081753]
[1769889859214,12.8817156,2380.6,2379.2,0.52540877]
[1769889859412,0.01672695,2380.7,2379.2,0.52540877]
[1769889859617,0.01672695,2380.6,2379.2,0.52540877]
[1769889859836,1.05024365,2380.4,2379.3,1.0507292]
[1769889860043,0.01672695,2380.0,2379.1,1.05079173]
[1769889860435,0.01672695,2380.0,2379.2,1.05077065]
[1769889860639,0.01672695,2380.2,2379.2,1.05077065]
[1769889860817,0.01672695,2380.1,2378.5,4.20430854]
[1769889861019,0.01672695,2379.7,2378.7,1.05097474]
[1769889861219,0.01672695,2379.7,2378.7,1.05095563]
[1769889861416,0.01672695,2379.7,2378.6,1.05101948]
[1769889861616,0.01672695,2379.7,2378.7,1.05098374]
[1769889861821,1.05059673,2379.6,2378.2,4.20486013]
[1769889862043,0.01672695,2379.5,2378.3,0.52561195]
[1769889862221,13.91558538,2379.6,2378.1,1.0512594]
[1769889862429,1.05042016,2380.0,2378.2,13.45067742]
[1769889862654,0.61330314,2379.9,2378.4,13.45067742]
[1769889862829,0.61330314,2379.9,2378.5,14.33167742]
[1769889863030,1.05026685,2380.4,2378.9,13.45067742]
[1769889863943,4.20182274,2380.5,2379.0,1.0508617]
[1769889863944,0.001,2380.5,2379.0,1.0508617]
[1769889864555,0.01672695,2380.2,2379.0,1.0508617]
[1769889865145,0.01672695,2380.2,2378.9,1.05087458]
[1769889865349,0.01672695,2380.2,2378.3,4.20451974]
[1769889865350,12.8817156,2379.7,2377.8,4.20553735]
[1769889865560,0.01672695,2379.5,2377.7,0.881]
[1769889865721,0.01672695,2379.5,2378.4,1.05112137]
[1769889865920,1.05068504,2379.4,2377.8,1.05139204]
[1769889867729,1.06741199,2379.4,2377.8,1.05139204]
[1769889867942,1.05077336,2379.2,2378.0,1.05130361]
[1769889868143,1.57944434,2379.3,2378.0,1.05130361]
[1769889868643,1.05067395,2379.5,2378.0,14.50198103]
[1769889869355,1.27009473,2379.6,2378.1,13.68424772]
[1769889869532,1.27009396,2379.6,2378.1,13.45067742]
[1769889869725,0.01672695,2379.4,2378.0,1.05130361]
[1769889869925,1.05077336,2379.2,2378.2,1.0512152]
[1769889870646,1.05077336,2379.2,2378.1,1.63828757]
[1769889870851,1.05077336,2379.2,2378.1,1.05125616]
[1769889872438,1.05077336,2379.2,2378.0,4.20520574]
[1769889873241,0.21949325,2379.6,2378.0,4.20520574]
[1769889873560,0.21949325,2379.6,2378.5,13.45067742]
[1769889873761,0.21949325,2379.6,2378.4,0.01672695]
[1769889873762,0.21949325,2379.6,2378.6,14.33167742]
[1769889873928,0.21949325,2379.6,2378.7,14.88384516]
[1769889874333,0.001,2379.4,2378.7,14.88384516]
[1769889874634,0.001,2379.4,2378.8,1.05095005]
[1769889875561,1.05028777,2380.3,2378.8,14.49202747]
[1769889875731,0.21943737,2380.1,2378.9,2.01289954]
[1769889875926,0.21943737,2380.1,2378.9,15.46357696]
[1769889877057,0.21943737,2380.1,2379.0,1.0508617]
[1769889877556,1.05027117,2380.4,2379.0,1.0508617]
[1769889877735,0.52521133,2380.4,2379.1,2.07178855]
[1769889878058,0.001,2380.9,2379.5,13.13051673]
[1769889878243,0.0008,2380.8,2379.6,14.01151673]
[1769889878439,0.001,2380.9,2379.9,13.13051673]
[1769889878646,1.05072212,2381.6,2380.2,13.36408703]
[1769889878860,1.05072212,2381.6,2380.3,14.01151673]
[1769889878861,0.001,2381.6,2380.3,14.01151673]
[1769889879042,0.001,2381.6,2380.4,14.18076038]
[1769889879246,0.001,2381.6,2380.5,13.36408703]
[1769889879556,0.0008,2382.0,2380.9,13.13051673]
[1769889879752,1.26861183,2382.7,2381.1,13.13051673]
[1769889880060,0.01672695,2382.6,2381.0,0.881]
[1769889880562,15.07746356,2382.7,2381.1,0.2335703]
[1769889880563,1.26861183,2382.7,2381.1,0.2335703]
[1769889880870,1.26864704,2382.7,2381.1,14.55669813]
[1769889881036,1.26861892,2382.7,2381.3,1.04984672]
[1769889881461,1.26861487,2382.7,2381.3,1.04984672]
[1769889881874,1.26861363,2382.7,2381.3,1.04984672]
[1769889882044,1.26861363,2382.7,2381.4,0.881]
[1769889882242,0.54655331,2382.6,2381.4,0.881]
[1769889882661,0.46598426,2382.6,2381.4,0.881]
[1769889882864,0.0008,2383.0,2382.0,13.78301679]
[1769889883054,1.04861373,2384.1,2382.2,1.04945008]
[1769889883055,1.0487017,2383.9,2382.2,1.04945008]
[1769889883554,1.0487017,2383.9,2382.2,14.83246687]
[1769889883755,0.52602355,2383.8,2382.3,15.81590019]
[1769889883958,0.52602355,2383.8,2382.4,13.78301679]
[1769889884157,1.04866569,2384.0,2382.4,13.78301679]
[1769889884349,1.04856975,2384.2,2382.5,0.25029725]
[1769889884736,1.04850574,2384.4,2382.8,0.25029725]
[1769889884959,0.881,2384.5,2383.0,0.2335703]
[1769889885261,0.21927674,2384.7,2383.8,13.78301679]
[1769889885458,0.21905208,2385.0,2383.9,0.881]
[1769889885664,1.04806865,2385.4,2383.9,0.881]
[1769889885855,1.04793484,2385.7,2384.0,1.48312863]
[1769889886049,1.04793484,2385.7,2384.1,0.2335703]
[1769889886288,0.01672695,2386.1,2384.1,0.2335703]
[1769889886289,1.04785351,2385.9,2384.1,0.2335703]
[1769889886569,1.04785351,2385.9,2384.1,14.01658709]
[1769889886775,0.52389773,2385.8,2384.3,0.2335703]
[1769889887164,1.04788459,2385.8,2384.4,1.04848179]
[1769889887464,13.02459582,2385.9,2384.5,0.88]
[1769889887671,13.04132277,2385.9,2384.4,1.04848179]
[1769889887851,13.04132277,2385.5,2383.9,1.04867669]
[1769889888179,13.04132277,2385.3,2383.6,1.04883367]
[1769889888362,13.04132277,2385.3,2383.4,0.88]
[1769889888363,13.04132277,2384.9,2383.4,1.04889664]
[1769889888540,13.04132277,2384.8,2383.4,1.0489214]
[1769889888944,13.04132277,2384.8,2383.5,1.0488764]
[1769889889144,1.04834989,2384.7,2383.1,1.04905375]
[1769889889356,1.04834989,2384.7,2383.2,0.61254128]
[1769889889958,4.19339958,2384.9,2383.3,0.2335703]
[1769889889959,4.19306122,2384.9,2383.3,0.2335703]
[1769889890159,4.19306122,2384.9,2383.2,0.61254128]
[1769889890564,13.04132277,2384.8,2383.2,0.61254128]
[1769889890767,13.02459582,2384.4,2383.1,1.04905375]
[1769889890970,13.02459582,2384.8,2383.1,1.04905375]
[1769889891155,13.02459582,2384.5,2383.0,4.19621501]
[1769889891472,13.04132277,2384.3,2382.9,1.0491342]
[1769889891676,13.92132277,2384.2,2382.6,1.0492481]
[1769889891845,13.02459582,2384.5,2382.9,1.04912353]
[1769889892049,14.08222561,2384.4,2382.9,1.04912353]
[1769889892250,14.08222561,2384.4,2382.8,1.04916245]
[1769889892552,13.04132277,2384.2,2382.8,1.04917759]
[1769889892747,13.04132277,2384.2,2382.3,6.21366774]
[1769889892748,13.90459582,2384.1,2382.9,1.04914094]
[1769889893147,14.07329752,2383.9,2382.8,1.04917654]
[1769889893352,0.52919303,2383.8,2382.9,1.04913838]
[1769889893749,0.52919303,2383.8,2382.3,2.01615645]
[1769889893750,13.55378885,2383.8,2382.3,2.01615645]
[1769889893976,13.55378885,2383.8,2382.9,1.04913283]
[1769889893977,0.52919303,2383.8,2382.9,1.04913283]
[1769889894355,0.52919303,2383.8,2382.7,1.04919781]
[1769889894658,0.52919303,2383.8,2382.6,1.04926847]
[1769889894853,0.52919303,2383.8,2382.7,1.0492283]
[1769889895064,14.08222561,2383.7,2382.2,0.88]
[1769889895270,1.04883369,2383.6,2382.3,1.04940603]
[1769889896289,1.04883369,2383.6,2382.2,1.04944983]
[1769889897081,14.09015646,2383.6,2382.2,1.04944923]
[1769889897290,13.02459582,2383.4,2381.8,4.19848237]
[1769889897973,0.88,2383.3,2381.8,4.19848237]
[1769889898287,0.88,2383.3,2382.5,0.0011]
[1769889899280,14.07360555,2383.2,2382.5,0.0011]
[1769889899585,1.05762979,2383.1,2382.5,0.0011]
[1769889899812,14.08222561,2383.1,2381.7,1.04966731]
[1769889900085,0.0008,2382.9,2381.8,0.01672695]
[1769889900271,0.0008,2382.9,2382.1,0.01672695]
[1769889900470,0.0008,2382.9,2381.9,0.01672695]
[1769889900672,0.0008,2382.9,2381.8,0.54490723]
[1769889900879,0.0008,2382.9,2381.8,0.52818028]
[1769889901375,0.0008,2382.9,2381.9,1.04958226]
[1769889901582,0.0008,2382.9,2381.9,1.62886411]
[1769889901965,0.0008,2382.9,2381.4,0.01672695]
[1769889902163,0.0008,2382.9,2381.8,1.06633916]
[1769889902367,0.0008,2382.9,2381.8,1.04961221]
[1769889902564,13.02459582,2382.6,2381.3,0.0011]
[1769889902765,13.02459582,2382.2,2380.5,4.20077126]
[1769889902965,0.89672695,2382.5,2381.5,4.19890928]
[1769889902966,0.88,2382.5,2381.5,4.19890928]
[1769889903187,0.88,2382.5,2381.1,0.01672695]
[1769889903356,1.04936198,2382.4,2381.1,1.49825948]
[1769889903580,14.0739578,2382.4,2381.1,1.04991309]
[1769889903786,1.04932459,2382.5,2381.1,1.04991309]
[1769889904901,14.07392041,2382.5,2381.1,1.04991309]
[1769889905288,13.04132277,2382.1,2380.1,0.01672695]
[1769889905485,13.04132277,2382.5,2380.6,13.78301679]
[1769889905710,0.1024,2382.4,2380.6,13.78301679]
[1769889905897,0.1024,2382.4,2380.7,0.2335703]
[1769889906098,0.1024,2382.4,2380.6,13.78301679]
[1769889906690,0.11912695,2382.4,2380.6,13.78301679]
[1769889906890,13.14171933,2382.3,2380.7,1.37830168]
[1769889907107,0.01672695,2382.0,2380.1,15.05204519]
[1769889907322,0.1024,2382.3,2380.5,0.2335703]
[1769889907486,1.04945008,2382.2,2380.6,1.05015542]
[1769889908104,1.04945008,2382.2,2380.7,0.2335703]
[1769889908310,1.04945008,2382.2,2380.6,1.05015542]
[1769889908510,0.53496504,2382.1,2380.7,0.52507771]
[1769889908900,13.55755742,2382.1,2380.6,1.05015542]
[1769889910126,1.0495382,2382.0,2380.5,4.20062169]
[1769889910495,1.9295382,2382.0,2380.6,0.2335703]
[1769889910823,1.9295382,2382.0,2380.7,0.0011]
[1769889913241,14.96885753,2382.0,2380.5,4.20172169]
[1769889913397,1.05185778,2381.9,2380.6,0.2335703]
[1769889913717,1.9295382,2382.0,2380.6,13.74853514]
[1769889913915,1.9295382,2382.0,2380.8,0.01672695]
[1769889914116,0.001,2382.1,2381.1,0.01672695]
[1769889914316,0.001,2382.1,2381.5,0.01672695]
[1769889914616,0.001,2382.1,2381.6,1.04971447]
[1769889914832,0.001,2382.1,2381.7,0.52652993]
[1769889915906,0.0008,2382.9,2382.0,13.74853514]
[1769889916114,1.0487017,2383.9,2382.5,0.01672695]
[1769889916436,14.07129408,2383.9,2382.2,0.01672695]
[1769889916642,14.07129408,2383.9,2382.5,1.04931794]
[1769889917229,0.21916903,2383.8,2382.5,1.06604489]
[1769889917431,0.21916903,2383.8,2382.6,0.01672695]
[1769889917638,0.21916903,2383.8,2382.5,1.04931794]
[1769889917814,0.21916903,2383.8,2382.3,0.01672695]
[1769889917815,13.24176141,2383.8,2382.3,1.04938205]
[1769889918013,13.24176141,2383.8,2382.4,1.04933571]
[1769889918242,0.21916903,2383.8,2382.4,1.06606266]
[1769889918714,0.21916903,2383.8,2382.2,4.2141749]
[1769889918715,13.02259238,2383.6,2382.2,1.04945008]
[1769889918912,1.04878969,2383.7,2382.2,1.04945008]
[1769889919105,0.54631175,2383.6,2382.3,0.52639774]
[1769889919943,0.54631175,2383.6,2381.7,1.57618969]
[1769889919944,13.02259238,2383.1,2381.7,1.57618969]
[1769889920132,13.02259238,2382.9,2381.6,1.04968174]
[1769889920437,13.02259238,2382.9,2381.2,4.19952179]
[1769889920438,13.02259238,2382.9,2381.9,1.04958118]
[1769889921235,1.04918583,2382.8,2381.5,4.19902398]
[1769889921416,1.04051107,2382.7,2381.6,0.52488266]
[1769889921940,1.04051107,2382.7,2381.4,1.04980263]
[1769889923119,1.0492739,2382.6,2381.4,1.04980263]
[1769889923710,14.07186628,2382.6,2381.4,1.04980263]
[1769889924033,14.07186628,2382.6,2381.3,1.04983026]
[1769889924243,13.56890413,2382.5,2381.3,1.04983026]
[1769889924425,13.90259238,2382.4,2380.7,0.0011]
[1769889924627,0.54631175,2382.5,2380.8,4.21696323]
[1769889924628,13.02259238,2382.2,2380.8,4.21696323]
[1769889924843,1.04051107,2382.1,2381.1,1.04993217]
[1769889925027,1.92051107,2382.1,2381.0,1.04994599]
[1769889925235,1.0495382,2382.0,2380.7,4.20148619]
[1769889926013,14.07213058,2382.0,2380.7,4.20148619]
[1769889926229,0.54631175,2381.9,2380.7,4.20148619]
[1769889926430,13.02259238,2381.8,2380.7,1.05121131]
[1769889927036,0.54631175,2381.9,2380.7,1.05121131]
[1769889927231,1.04962633,2381.8,2380.7,1.06793826]
[1769889927756,1.92938561,2382.4,2381.1,0.25029725]
[1769889927956,1.92938561,2382.4,2381.2,0.01672695]
[1769889928724,14.95197799,2382.4,2381.0,0.88]
[1769889929254,1.0488777,2383.5,2381.9,0.01672695]
[1769889929449,0.42299775,2383.4,2382.3,0.01672695]
[1769889929630,0.42299775,2383.4,2382.5,0.01672695]
[1769889929830,1.04984352,2383.6,2382.4,0.01672695]
[1769889930236,1.04984745,2383.6,2382.3,0.2335703]
[1769889930432,1.04984745,2383.6,2382.4,0.01672695]
[1769889930854,1.04984745,2383.6,2382.0,13.73180819]
[1769889931234,0.001,2383.6,2382.1,1.04949414]
[1769889931438,0.001,2383.6,2382.2,1.32350941]
[1769889932330,0.001,2383.6,2382.3,13.96537849]
[1769889932532,0.001,2383.6,2382.6,13.73180819]
[1769889932730,0.21916903,2383.8,2382.7,13.96537849]
[1769889932961,0.0008,2384.0,2382.7,13.96537849]
[1769889933162,0.0008,2384.0,2382.9,1.0491418]
[1769889933362,0.0008,2384.0,2383.0,0.2335703]
[1769889933536,1.31340191,2384.3,2383.0,0.2335703]
[1769889933856,0.26485518,2384.3,2383.2,13.73180819]
[1769889934058,0.26485518,2384.3,2383.3,1.37485351]
[1769889934237,0.0008,2384.4,2383.4,0.2335703]
[1769889934636,1.04929448,2384.4,2383.3,1.37485351]
[1769889934953,1.04929448,2384.4,2382.9,1.0491418]
[1769889935132,0.0008,2384.4,2382.9,1.0491418]
[1769889935661,13.02339238,2384.4,2382.9,1.0491418]
[1769889935856,0.001,2384.1,2382.9,1.0491418]
[1769889936531,0.00068859,2384.4,2383.0,0.2335703]
[1769889936732,1.15074989,2384.7,2383.0,15.88648724]
[1769889936733,0.00068859,2384.5,2383.0,15.88648724]
[1769889937367,0.0008,2384.5,2383.0,15.88648724]
[1769889937556,0.0008,2384.5,2383.2,0.2335703]
[1769889937764,0.0008,2384.5,2383.2,14.1726085]
[1769889937956,0.0008,2384.5,2383.3,1.52216623]
[1769889938270,0.0008,2384.5,2383.2,0.88]
[1769889938647,0.0008,2384.5,2383.2,0.89672695]
[1769889941462,0.0008,2384.5,2383.4,13.21336826]
[1769889941850,0.0008,2384.5,2383.3,1.28253601]
[1769889942242,0.0008,2384.5,2383.4,0.88]
[1769889942555,0.0008,2384.5,2383.4,1.51583989]
[1769889942942,0.0008,2384.5,2383.3,1.04896571]
[1769889943141,0.0008,2384.5,2383.3,1.92896571]
[1769889944563,13.96046667,2384.5,2383.2,1.0489816]
[1769889944735,13.95966667,2384.3,2382.9,1.04912007]
[1769889944940,13.95966667,2384.1,2383.1,1.04905032]
[1769889945168,13.95966667,2384.1,2383.0,1.04907743]
[1769889945368,13.95966667,2384.1,2383.0,1.04906294]
[1769889945542,0.48930592,2384.0,2383.0,1.04906294]
[1769889945741,1.0487017,2383.9,2382.5,1.04931794]
[1769889947763,1.0487017,2383.9,2383.1,0.0011]
[1769889950271,2.41697061,2384.0,2383.1,0.0011]
[1769889950669,0.6611508,2383.9,2383.1,0.0011]
[1769889952176,1.0487457,2383.8,2383.1,0.0011]
[1769889955384,1.70986089,2383.9,2383.1,0.0011]
[1769889955576,15.66952756,2383.9,2382.9,0.0011]
[1769889956955,14.83966667,2383.8,2382.9,0.0011]
[1769889957160,1.22587448,2383.7,2382.9,0.0011]
[1769889957378,0.88,2383.8,2382.9,0.0011]
[1769889957776,4.19394886,2384.4,2382.9,13.21446826]
[1769889957981,5.07394886,2384.4,2382.9,13.21446826]
[1769889958971,5.07394886,2384.4,2383.0,1.04909777]
[1769889959363,0.0008,2384.5,2383.0,14.26246603]
[1769889959564,3.32531848,2384.5,2383.1,15.05936397]
[1769889959764,1.92927181,2384.5,2383.1,15.05936397]
[1769889960284,1.92927181,2384.5,2383.2,13.21336826]
[1769889960588,0.8808,2384.5,2383.2,13.21336826]
[1769889960779,0.0008,2384.5,2383.6,13.21336826]
[1769889961090,0.0008,2384.5,2383.7,1.04878969]
[1769889961261,0.0008,2384.5,2383.8,1.84573167]
[1769889961461,0.88,2385.1,2383.9,13.44693856]
[1769889961462,1.9282078,2385.1,2383.9,13.44693856]
[1769889961658,0.88,2385.1,2383.9,13.44693856]
[1769889961858,1.04791046,2385.7,2383.9,13.44693856]
[1769889962162,13.97639362,2385.2,2384.0,1.53093972]
[1769889962359,0.879,2385.1,2383.7,1.04878969]
[1769889962759,0.879,2385.1,2383.5,0.879]
[1769889962760,13.95966667,2385.0,2383.5,0.879]
[1769889962966,15.00806053,2384.6,2383.2,4.19599744]
[1769889964000,0.879,2385.0,2383.5,13.21336826]
[1769889964200,4.1921723,2385.4,2384.0,13.23009521]
[1769889964368,0.61192146,2385.3,2384.2,13.44693856]
[1769889964570,0.879,2385.5,2384.3,14.10909521]
[1769889965000,0.879,2386.0,2384.5,14.26180608]
[1769889965504,0.21849167,2386.2,2384.5,14.27853303]
[1769889965675,0.21849167,2386.2,2384.6,1.84890113]
[1769889966004,0.21849167,2386.2,2384.6,1.86562808]
[1769889966196,14.17815834,2386.2,2384.6,1.86562808]
[1769889966496,14.17815834,2386.2,2384.6,1.84890113]
[1769889967071,1.04773479,2386.1,2384.7,1.04834989]
[1769889967271,1.04773479,2386.1,2384.8,0.70906506]
[1769889968578,0.21912934,2386.4,2385.1,13.80607567]
[1769889968784,0.21912934,2386.4,2385.2,14.03964597]
[1769889968984,0.21912934,2386.4,2385.4,14.02291902]
[1769889969178,0.21912934,2386.4,2385.6,1.04795439]
[1769889969468,1.04851996,2386.6,2385.5,1.92696772]
[1769889969668,1.04851996,2386.6,2385.6,0.2335703]
[1769889969669,0.001,2386.6,2385.6,0.2335703]
[1769889969903,0.001,2386.8,2386.1,0.01672695]
[1769889970212,0.001,2387.0,2386.2,0.2335703]
[1769889970213,0.0018,2387.0,2386.2,0.2335703]
[1769889970416,0.28331189,2387.6,2386.4,14.03964597]
[1769889970570,0.28411189,2387.6,2386.6,13.80607567]
[1769889970769,1.33118907,2387.6,2385.6,15.82361361]
[1769889971072,1.33118907,2387.6,2386.3,0.25029725]
[1769889971073,1.33120334,2387.6,2386.3,0.25029725]
[1769889971274,1.33120334,2387.6,2386.4,1.04760308]
[1769889971478,14.77089395,2387.6,2386.0,0.879]
[1769889971705,14.77089395,2387.6,2386.4,0.01672695]
[1769889971706,0.28411189,2387.6,2386.4,0.01672695]
[1769889972006,0.28411189,2387.6,2386.6,0.01672695]
[1769889972217,0.28411189,2387.6,2386.8,0.2335703]
[1769889972446,0.0844227,2388.2,2387.2,13.80607567]
[1769889972580,0.0844227,2388.2,2387.6,0.01672695]
[1769889972945,1.32876051,2389.8,2387.9,13.80607567]
[1769889973095,0.21847603,2389.6,2388.3,0.25029725]
[1769889973280,1.32874477,2389.8,2388.5,0.25029725]
[1769889973479,14.76843538,2389.8,2388.4,1.92572584]
[1769889973702,14.76843538,2389.8,2388.1,4.18735683]
[1769889973703,13.43969061,2389.5,2388.1,4.18735683]
[1769889973906,13.43969061,2389.5,2388.3,1.04675847]
[1769889974103,0.1024,2389.7,2387.8,1.92596142]
[1769889974104,13.45641756,2389.4,2387.8,1.92596142]
[1769889974294,0.879,2389.3,2387.9,1.04693484]